Cogmind - Beta 15 @@@ ROGUE MODE // 2025.07.22 @ 14:29:11 Player: amhumam Result: Destroyed by 8J-V43(R) with Subdweller Laser Performance ------------- Evolutions (0) 0 Regions Visited (3) 600 Robots Destroyed (32) 160 Value Destroyed (868) 868 Prototype IDs (0) 0 Alien Tech Used (0) 0 Bonus (0) 0 TOTAL SCORE: 1628 Bonus ------- None Cogmind --------- Core Integrity 0/250 Matter 275/300 Energy 175/200 System Corruption 0% Temperature Cool (22) Movement Rolling (107) Ox1 Location -10/Subcaves Parts ------- > --- POWER (1) -------- Subdweller Power Source > --- PROPULSION (2) --- Wheel Subdweller Monowheel > --- UTILITY (2) ------ Large Storage Unit Makeshift Kinetic Plating > --- WEAPON (2) ------- Subdweller Beam Cannon Subdweller Beam Cannon > --- INVENTORY (15) --- Subdweller Power Source Advanced Treads Subdweller Monowheel Sensor Array Makeshift Sensor Array Scrap Shield Hacking Suite Subdweller Laser Beam Cannon Subdweller Machine Gun Barrage Gun Battle Cannon Subdweller Shrapnel Launcher Peak State ------------ > --- POWER ------------ Subdweller Power Source > --- PROPULSION ------- Advanced Treads Advanced Treads > --- UTILITY ---------- Large Storage Unit Makeshift Kinetic Plating > --- WEAPON ----------- Subdweller Beam Cannon Barrage Gun > --- INVENTORY -------- Subdweller Power Source Wheel Subdweller Monowheel Subdweller Monowheel Sensor Array Scrap Shield Hacking Suite Beam Cannon Subdweller Beam Cannon Assault Rifle Subdweller Machine Gun Battle Cannon Subdweller Shrapnel Launcher [Rating: 20] Favorites ----------- Power Light Ion Engine Engine Light Ion Engine Propulsion Advanced Treads Treads Advanced Treads Wheel Subdweller Monowheel Utility Large Storage Unit Device Sensor Array Storage Large Storage Unit Protection Makeshift Kinetic Plating Weapon Subdweller Beam Cannon Energy Gun Small Laser Energy Cannon Subdweller Beam Cannon Ballistic Gun Light Assault Rifle Launcher Subdweller Shrapnel Launcher Build | -11 -10 -10 -10 ------- Run | Yrd Mat Min Sub Slots Evolved . | . . . . Power . | . . . . Propulsion . | . . . . Utility . | . . . . Weapon . | . . . . Parts Attached 30 | 6 4 4 16 Power 6 | 1 1 . 4 Engine 6 | 1 1 . 4 Core . | . . . . Reactor . | . . . . Propulsion 7 | 2 1 1 3 Treads 5 | 2 1 1 1 Leg . | . . . . Wheel 2 | . . . 2 Hover . | . . . . Flight . | . . . . Utility 6 | 1 2 1 2 Device 1 | . 1 . . Storage 2 | 1 1 . . Processor . | . . . . Hackware . | . . . . Protection 3 | . . 1 2 Artifact . | . . . . Weapon 11 | 2 . 2 7 Energy Gun 1 | 1 . . . Energy Cannon 5 | . . 1 4 Ballistic Gun 4 | 1 . 1 2 Ballistic Cannon . | . . . . Launcher 1 | . . . 1 Special Weapon . | . . . . Impact Weapon . | . . . . Slashing Weapon . | . . . . Piercing Weapon . | . . . . Special Melee Weapon . | . . . . Unidentified Prototypes . | . . . . Parts Lost 12 | . 2 1 9 Power 3 | . 1 . 2 Propulsion 4 | . 1 1 2 Utility 2 | . . . 2 Weapon 3 | . . . 3 Highest Loss Streak 2 | . 1 1 2 To Critical Strikes . | . . . . Average Backups 12 | 1 7 14 13 Power 1 | . . 1 1 Propulsion 3 | . 3 5 3 Utility 2 | . . 2 2 Weapon 4 | . 1 4 5 Tool/Special . | . . . . Unused Backups 18 | . . 1 17 Power 1 | . . . 1 Propulsion 4 | . . . 4 Utility 5 | . . 1 4 Weapon 8 | . . . 8 Tool/Special . | . . . . Average Slot Usage (%) 97 | . 95 98 98 Engine 13 | . 13 14 13 Treads 27 | . 27 27 27 Device 2 | . 9 2 . Storage 14 | . 15 14 14 Protection 10 | . . 12 13 Energy Gun 4 | . 14 13 . Energy Cannon 10 | . . . 15 Ballistic Gun 11 | . 14 14 9 Peak Build Rating 20 | 6 8 17 20 Average Rating 14 | 5 7 11 18 On Entrance 7 | . 6 8 17 Naked Turns . | . . . . Heaviest Build 48 | 12 32 40 48 Greatest Support 44 | 40 40 42 44 Greatest Overweight (x) 2 | 1 . 1 2 Average Overweight (x) . | . . . . Largest Inventory Capacity 15 | 8 15 15 15 Average Capacity 14 | 7 13 15 15 Most Carried 15 | 4 10 15 15 Average Carried 12 | 1 7 14 14 Final Capacity 15 | 8 15 15 15 Final Carried 15 | 4 9 15 14 Class Distribution -------------------- 100% | Mutant Dominant Class ---------------- Mutant | -10/Materials Mutant | -10/Mines Mutant | -10/Subcaves Resources | -11 -10 -10 -10 ----------- Run | Yrd Mat Min Sub Matter Collected 701 | 198 138 24 341 Remotely . | . . . . Salvage Created 897 | . 412 31 454 Parts 58 | . 26 5 27 Haulers Intercepted 1 | . 1 . . Recyclers Shooed . | . . . . Parts Field Recycled . | . . . . Retrieved Matter . | . . . . Parts Self-Destructed 11 | . . . 11 Prevented . | . . . . Kills | -11 -10 -10 -10 ------- Run | Yrd Mat Min Sub Combat Hostiles Destroyed 29 | . 9 3 17 Guns 18 | . 9 3 6 Cannons 6 | . . . 6 AOE 5 | . . . 5 Classes Destroyed 7 | . 5 . 2 Worker 1 | . 1 . . Hauler 1 | . 1 . . Operator 1 | . 1 . . Swarmer 10 | . 3 3 4 Grunt 7 | . 6 . 1 Sentry 1 | . . . 1 Subdweller 11 | . . . 11 Best Kill Streak 4 | . 4 3 4 Combat Bots Only 4 | . 2 3 4 Max Kills in Single Turn 4 | . 2 2 4 Gunslinging 1 | . . 1 . Exploded 3 | . . . 3 Melee . | . . . . Uniques/NPCs Destroyed . | . . . . Combat | -11 -10 -10 -10 -------- Run | Yrd Mat Min Sub Hostile Shots Fired 198 | . 65 24 109 Missed 61 | . 19 6 36 Hits 137 | . 46 18 73 Projectile 137 | . 46 18 73 AOE 6 | . . . 6 Critical Strikes 3 | . . . 3 Damage Taken 2144 | . 562 147 1435 Core 256 | . 80 . 176 Absorbed by Shields . | . . . . Ignored by Resistances 39 | . . . 39 Core Remaining (%) 100 | 100 . . . Volleys Fired 125 | . 46 5 74 Largest 2 | . 2 2 2 Hottest 160 | . 60 60 160 Shots Fired 211 | . 92 9 110 Gun 131 | . 92 8 31 Cannon 78 | . . 1 77 Launcher 2 | . . . 2 Special . | . . . . Kinetic 83 | . 46 4 33 Thermal 128 | . 46 5 77 Explosive . | . . . . Electromagnetic . | . . . . Robot Hit Streak 11 | . 9 3 11 Robot Miss Streak 5 | . 3 4 5 Penetration Max . | . . . . Secondary Targets 4 | . 3 1 . Max Gunslinging Chain 1 | . 1 1 . Shots Hit Robots 117 | . 61 3 53 Core Hits 56 | . 26 4 26 Critical Kills . | . . . . Critical Parts Destroyed . | . . . . Critical Strikes . | . . . . Melee Attacks . | . . . . Impact . | . . . . Slashing . | . . . . Piercing . | . . . . Sneak Attacks . | . . . . Combat Hostiles . | . . . . Follow-up Attacks . | . . . . Damage Inflicted 2000 | . 580 38 1382 Guns 1076 | . 580 38 458 Cannons 720 | . . . 720 Explosions 204 | . . . 204 Melee . | . . . . Ramming . | . . . . Kinetic 937 | . 259 16 662 Thermal 1063 | . 321 22 720 Explosive . | . . . . Electromagnetic . | . . . . Impact . | . . . . Slashing . | . . . . Piercing . | . . . . Highest Corruption . | . . . . Average Corruption . | . . . . Corruption Purged . | . . . . Corruption Blocked . | . . . . Overload Shots . | . . . . Overflow Damage . | . . . . Projectiles . | . . . . Explosions . | . . . . Melee . | . . . . Knockbacks . | . . . . Impact . | . . . . Kinetic . | . . . . Secondary . | . . . . Self-Inflicted Damage 29 | . . . 29 Shots 1 | . . . 1 Rammed . | . . . . Targets Rammed . | . . . . Kicked . | . . . . Crushed . | . . . . Highest Temperature 422 | . 153 90 422 Average Temperature 62 | . 52 41 80 Received Heat Transfer 1115 | . 261 . 854 Effects 2 | . . . 2 Shutdowns 1 | . . . 1 Matter Decay 1 | . . . 1 Siege Activations . | . . . . Martial Activations . | . . . . Shielding Activations . | . . . . Robots Disrupted . | . . . . Combat Hostiles . | . . . . Robots Corrupted . | . . . . Combat Hostiles . | . . . . Parts Fried . | . . . . Impact Corruptions . | . . . . Robots Melted . | . . . . Combat Hostiles . | . . . . Parts Melted 2 | . . . 2 Heat Transferred 1811 | . 725 50 1036 Parts Sabotaged . | . . . . Parts Stolen . | . . . . Parts Stripped . | . . . . Power Chain Reactions . | . . . . Alert | -11 -10 -10 -10 ------- Run | Yrd Mat Min Sub Maximum Alert Level . | . . . . Low Security (%) 100 | 100 100 100 . Level 1 . | . . . . Level 2 . | . . . . Level 3 . | . . . . Level 4 . | . . . . Level 5 . | . . . . High Security . | . . . . Max Security . | . . . . Peak Influence 70 | . 62 70 . Initial . | . . . . Average 11 | . 15 10 . Influence Increases 541 | . 246 70 225 Destroy 0b10 Robot/C 360 | . 180 60 120 Destroy 0b10 Robot/NC 15 | . 15 . . Destroy Leader 42 | . 32 10 . Successful Hack 19 | . 19 . . Lose Combat Pursuer 105 | . . . 105 Influence Decreases 440 | . 246 48 146 Entered New Map 12 | . . . 12 Time Decay 346 | . 184 48 114 Lost Part 40 | . 20 . 20 Purge Threat 42 | . 42 . . Squads Dispatched 1 | . . 1 . Investigation 1 | . . 1 . Extermination . | . . . . Reinforcement . | . . . . Assault . | . . . . Garrison . | . . . . Intercept . | . . . . Searches Triggered . | . . . . Construction Impeded . | . . . . Haulers Reinforced . | . . . . Active Scanning Responses . | . . . . Cargo Convoy Interrupts . | . . . . Stealth | -11 -10 -10 -10 --------- Run | Yrd Mat Min Sub Distress Signals 1 | . 1 . . Communications Jammed . | . . . . Distress Signals . | . . . . Times Spotted 43 | . 13 3 27 Peak Tracking Total 6 | . 3 3 6 Tactical Retreats 2 | . . . 2 Traps | -11 -10 -10 -10 ------- Run | Yrd Mat Min Sub Traps Triggered 1 | . 1 . . Indirectly . | . . . . Trap Hack Attempts . | . . . . Triggered . | . . . . Disarmed . | . . . . Reprogrammed . | . . . . Reused . | . . . . Traps Extracted . | . . . . Installed . | . . . . Triggered . | . . . . Machines | -11 -10 -10 -10 ---------- Run | Yrd Mat Min Sub Machines Disabled . | . . . . Max in Single Turn . | . . . . Machines Repaired . | . . . . Machines Dismantled . | . . . . Machines Sabotaged . | . . . . Overloaded Fab Kills . | . . . . Hacking | -11 -10 -10 -10 --------- Run | Yrd Mat Min Sub Machines Accessed 5 | . 3 1 1 Terminals 3 | . 3 . . Fabricators . | . . . . Repair Stations . | . . . . Recycling Units . | . . . . Scanalyzers . | . . . . Garrison Access . | . . . . Total Hacks 15 | . 10 1 4 Successful 11 | . 6 1 4 Failed 4 | . 4 . . Catastrophic . | . . . . Database Lockouts . | . . . . Manual 7 | . 7 . . Terminals 10 | . 10 . . Fabricators . | . . . . Repair Stations . | . . . . Recycling Units . | . . . . Scanalyzers . | . . . . Garrison Access . | . . . . Terminal Hacks 9 | . 4 1 4 Record 4 | . . . 4 Part Schematic 1 | . 1 . . Robot Analysis 1 | . 1 . . Open Door 1 | . . 1 . Branch Access Points 1 | . 1 . . Unreport Threat 1 | . 1 . . Fabricator Hacks . | . . . . Repair Station Hacks . | . . . . Recycling Unit Hacks . | . . . . Scanalyzer . | . . . . Garrison Access Hacks . | . . . . Unauthorized Hacks 2 | . 2 . . Terminals 2 | . 2 . . Botnet 2 | . 2 . . Fabricators . | . . . . Repair Stations . | . . . . Recycling Units . | . . . . Scanalyzers . | . . . . Garrison Access . | . . . . Data Cores Recovered 1 | . 1 . . Used . | . . . . Hacking Detections 3 | . 3 . . Full Trace Events . | . . . . Feedback Events . | . . . . Feedback Blocked . | . . . . Robot Schematics Acquired . | . . . . Robots Built . | . . . . Authchips . | . . . . Time . | . . . . Total Robot Build Rating . | . . . . Part Schematics Acquired 1 | . 1 . . Parts Built . | . . . . Authchips . | . . . . Time . | . . . . Total Part Build Rating . | . . . . Parts Repaired . | . . . . Time . | . . . . Parts Recycled . | . . . . Recycled Matter . | . . . . Retrieved Matter . | . . . . Retrieved Components . | . . . . Parts Scanalyzed . | . . . . Part Schematics Acquired . | . . . . Parts Damaged . | . . . . Bothacking | -11 -10 -10 -10 ------------ Run | Yrd Mat Min Sub Used RIF Installer . | . . . . Robots Hacked . | . . . . Non-combat . | . . . . Combat . | . . . . Robot Hacks Applied . | . . . . Relay Couplers Released . | . . . . Fabnet Peak Effective % . | . . . . Robots Rewired . | . . . . Allies Hacked . | . . . . Hacks Repelled . | . . . . Allies | -11 -10 -10 -10 -------- Run | Yrd Mat Min Sub Total Allies . | . . . . Largest Group . | . . . . Highest-Rated Group . | . . . . Highest-Rated Ally . | . . . . Total Orders . | . . . . Ally Attacks . | . . . . Total Damage . | . . . . Kills . | . . . . Allies Corrupted . | . . . . Allies Melted . | . . . . Intel | -11 -10 -10 -10 ------- Run | Yrd Mat Min Sub Active Infowar (turns) 444 | . 368 59 17 Sensors 444 | . 368 59 17 Robot Analysis Total 1 | . 1 . . Derelict Logs Recovered 1 | . . 1 . Drone Launches . | . . . . Drone Recoveries . | . . . . Exploration | -11 -10 -10 -10 ------------- Run | Yrd Mat Min Sub Turns Passed 3082 | 150 559 415 1958 Spaces Moved 1671 | 91 262 239 1079 Core 9 | 9 . . . Treads 1655 | 82 262 239 1072 Legs . | . . . . Wheels 7 | . . . 7 Hover . | . . . . Flight . | . . . . Fastest Speed 50 | 50 160 152 107 Average Speed 158 | 151 160 160 158 Slowest Speed 240 | 160 160 240 225 Overloaded Moves . | . . . . Propulsion Burnouts . | . . . . Robots Hopped . | . . . . Potential Cave-ins . | . . . . Cave-ins Triggered . | . . . . Exploration Rate (%) 48 | 6 50 63 76 Regions Visited 3 Branch Regions 2 Pre-discovered Areas 2 | . . 1 1 Known Exits Taken 1 | . 1 . . Unknown Exits Taken 2 | 1 . 1 . Scrap Searched 7 | . . 1 6 Spaces Dug 6 | . . . 6 Terrain Destroyed 43 | . . . 43 Melee . | . . . . Projectile 13 | . . . 13 AOE 30 | . . . 30 Terrain Rammed . | . . . . Walls Destroyed . | . . . . Machines Disabled . | . . . . Actions | -11 -10 -10 -10 --------- Run | Yrd Mat Min Sub Total 1898 | 100 319 262 1217 Wait 19 | . . 6 13 Move 1668 | 90 261 238 1079 Hop . | . . . . Pick Up 36 | 4 7 8 17 Fast Attach 11 | 6 2 . 3 Attach 11 | . 2 1 8 Detach 1 | . . . 1 Swap 11 | . . 3 8 Drop 16 | . 1 1 14 Fire 125 | . 46 5 74 Melee . | . . . . Ram . | . . . . Kick . | . . . . Crush . | . . . . Escape Stasis . | . . . . Rewire . | . . . . Trap . | . . . . Miscellaneous . | . . . . Route ------- -11/Scrapyard -10/Materials (discovered 2 exits: [*Mat] / *Min) -10/Mines (discovered 2 exits: [*Mat] / *Sub) -10/Subcaves (discovered 2 exits: [*Mat] / [*Rec]) History --------- Turn | Location | Event 10 | -11/Scrapyard | Discovered new exit (range 14) 151 | -11/Scrapyard | Entered Materials 317 | -10/Materials | Build established: Mutant 458 | -10/Materials | Identified exit to Mines 554 | -10/Materials | Discovered new exit (range 14) 710 | -10/Materials | Entered Mines 718 | -10/Mines | Met a Derelict shopkeep closing up shop 882 | -10/Mines | Discovered new exit (range 16) 1122 | -10/Mines | Discovered new exit (range 3) 1125 | -10/Mines | Entered Subcaves 1135 | -10/Subcaves | Discovered new exit (range 14) 1331 | -10/Subcaves | Disturbed a concealed Subdweller 1536 | -10/Subcaves | A swath of the cavern ceiling suddenly collapsed 1545 | -10/Subcaves | Visited Clippyterm 1549 | -10/Subcaves | Learned Research security intel 1643 | -10/Subcaves | Ambushed by Subdweller buried in earth 1658 | -10/Subcaves | Core integrity fell below 50% 1820 | -10/Subcaves | Shifting Twisted Machinery released Barrage Gun 1846 | -10/Subcaves | Shifting Twisted Machinery released Sub. Monowheel 2425 | -10/Subcaves | Shifting Twisted Machinery released Flamer 2438 | -10/Subcaves | Shifting Twisted Machinery released Mak. Power Source 2450 | -10/Subcaves | A swath of the cavern ceiling suddenly collapsed 2509 | -10/Subcaves | Learned location of Zion (-7) 2509 | -10/Subcaves | Met a Zionite searching for "candidates" 2550 | -10/Subcaves | Shifting Twisted Machinery released Scrap Shield 2580 | -10/Subcaves | Shifting Twisted Machinery released Sub. Machine Gun 2616 | -10/Subcaves | Discovered new exit (range 16) 2770 | -10/Subcaves | Core integrity fell below 20% 3075 | -10/Subcaves | A Subdweller sparked back to life 3075 | -10/Subcaves | A Subdweller sparked back to life 3075 | -10/Subcaves | A Subdweller sparked back to life 3083 | -10/Subcaves | Destroyed by 8J-V43(R) with Subdweller Laser Last Messages --------------- shutdown. 02773_ Overheating: Matter decay (-26). 02775_ Acquired 56 matter. 02784_ Dropped Broken Sub. Power Source. 02815_ Dropped Battle Rifle. 02815_ Acquired Mak. Sensor Array. 02819_ Acquired 20 matter. 02823_ Acquired 15 matter. 02832_ Acquired 5 matter. 02925_ Sub. Beam Cannon shoots sparks and powers down. 02984_ Dropped Broken Sub. Beam Cannon. 02985_ Acquired Sub. Beam Cannon. 03069_ Adv. Treads destroyed. 03075_ N0-IPS(R) creaks and sparks as it begins to move. 03075_ UC-RPV(R) creaks and sparks as it begins to move. 03075_ F5-Y15(R) creaks and sparks as it begins to move. Map ----- +----------------------------------------------------+ | ####?????? "# # ????????????????????????#""" | | #????# "## ?? #?????????????????????#### | | #?#### ####" ?? #????????????????????????? | | ### ######"""### #????????????????????????? | | # #"""""" #?????????????????????????? | | "" """#??????????????????????????? | | "" "##?###?????????????????????? | | ## " ##""##????????????????????? | | #### """"""""""?????????????????????? | | #####??##""" """"""""??????????????????????? | | ## #???????###""""""""#???????????????????????? | | ## ##????????## #"! ##???????????????????????? | | # #???###### "# ""#???????????????????????? | | ### ##???# """"" #???? ????????????????## | | ??## #???# """# " #???"" ????????????????# | | ?### ##???## # #""# " #?? "??????????????????# | | ## ###?## ######"""####""""?????????????????# | | # "### ## #""###"""""#????????????????# | | ##"# ## # """""##???????????????# | | ####" "# """""""#???????????????# | | ### " ##### " """""#???????????????# | | # #### ##?# "R "##???????????????# | | / #### ### " [""#???????????????? | | # #?## ## ##???????????????? | | # ### ##??# "#####???????????? | | # ## #??# @### "" "" #???????????? | | # ## ##??# ####?## """"""???????????? | | "##### # #???### ""#???????????? | | * #?### ######### "#???????????? | | ## ## ##???## #####"" " " #???????????? | | ## ###=] #???# # # # &##"##???????????? | | ### ##?# ##???## "#???????????????? | | #?###### #?????## # # #" "#???????????????? | | ##### ##?????#########"% "##???????????????? | | ## # #?????????????#" "" #???????????????? | | ## #### #?????????????#" %" ##???????????????? | | ## ##??## #?????????????#" "##????????????????? | | #????# #?????????????#" ##?????????????????? | | #????# #?????????????## #??????????????????? | | ## ##??## #??????????????# #??????????????????? | | ?# #### ##??????????????# #??????????????????? | | ?#"" ##??????????????? ??????????????????? | | ?#########???????????????? ??????????????????? | | ??????????????????????????? ??????????????????? | | ??????????????????????????? ?????????????????? | | ???????????????????????????" " ?????????????????? | | ???????????????????????????" """?????????????????? | | ????????????????????????????